[Event "Memorial Ukrainian Chess Warriors 2024"]
[Site "Lviv"]
[Date "2024.03.15"]
[Round "7.22"]
[White "Pivnev, Vladyslav"]
[Black "Podolskyi, Mykhailo"]
[Result "0-1"]
[ECO "A11"]
[WhiteElo "1597"]
[BlackElo "2331"]
[Annotator "TA"]
[PlyCount "56"]
[EventDate "2024.03.06"]
[EventType "swiss"]
[EventCountry "UKR"]
[SourceTitle "playchess.com"]
[Source "ChessBase"]
[SourceQuality "1"]
[TimeControl "600+5"]

{[%evp 9,56,0,0,8,7,-12,13,0,0,0,0,-66,-43,-59,-41,-17,-30,-19,-6,-558,-580,-580,-570,-756,-757,-855,-852,-991,-1000,-1217,-649,-1558,-1507,-2097,-1937,-1518,-2366,-2457,-2379,-2505,-2418,-2083,-1277,-2102,-2094,-1675,-1319,-2030,-1860]} 1. c4 {[%emt 0:00:02]} c6 {[%emt 0:00:03]} 2. g3 {[%emt 0:00:03]} d5 {[%emt 0:00:01]} 3. Bg2 {[%emt 0:00:03]} Nf6 {[%emt 0:00:17]} 4. Nf3 {[%emt 0:00:05]} dxc4 {[%emt 0:00:01]} 5. Qc2 {[%emt 0:00:08]} b5 {[%emt 0:00:04]} 6. a4 {[%emt 0:00:13]} Bb7 {[%emt 0:00:03]} 7. Ne5 {[%emt 0:00:17] [#] Strongly threatening axb5.} a6 {[%emt 0:00:22]} 8. axb5 {[%emt 0:00:11] The position is equal.} axb5 {[%emt 0:00:02]} 9. Rxa8 {[%emt 0:00:02]} Bxa8 {[%emt 0:00:01]} 10. Na3 {[%emt 0:00:36]} (10. d3 $11) 10... Qc7 {[%emt 0:01:12]} 11. f4 {[%emt 0:00:11]} e6 {[%emt 0:00:29]} 12. Nxb5 {[%emt 0:00:06]} cxb5 {[%emt 0:00:01]} 13. Bxa8 {[%emt 0:00:02]} Bd6 {[%emt 0:00:05][%cal Oe8g8]} 14. d4 $2 {[%emt 0:01:03][%mdl 8192] This move loses the game for White.} (14. b3 $11) 14... Qa5+ $19 {[%emt 0:00:13] Black is clearly winning.} 15. Bd2 {[%emt 0:00:20]} Qxa8 {[%emt 0:00:02]} 16. Rf1 {[%emt 0:00:01]} Nc6 {[%emt 0:00:16]} 17. Bc3 {[%emt 0:00:26]} O-O {[%emt 0:00:31] [#] ...b4 is the strong threat.} 18. f5 {[%emt 0:00:16]} exf5 {[%emt 0:00:17]} 19. Rxf5 {[%emt 0:00:01]} Qa1+ {[%emt 0:01:42]} 20. Kf2 {[%emt 0:00:25]} Nxe5 {[%emt 0:00:05]} 21. dxe5 {[%emt 0:00:09]} Bc5+ {[%emt 0:00:00]} 22. Kg2 {[%emt 0:00:35]} Ng4 {[%emt 0:00:15] ( -> ...Ne3+)} 23. Kh3 {[%emt 0:00:26]} Ne3 {[%emt 0:00:20][%csl LRc2,LRf5]} 24. Qe4 {[%emt 0:00:02] Wards off Qh1} Nxf5 {[%emt 0:00:01]} 25. Qxf5 {[%emt 0:00:01]} Qa6 {[%emt 0:00:03]} 26. g4 {[%emt 0:00:10]} Qh6+ {[%emt 0:00:03]} 27. Kg2 {[%emt 0:00:01]} Qc6+ {[%emt 0:00:03]} 28. e4 {[%emt 0:00:03]} Qe6 {[%emt 0:00:01] Weighted Error Value: White=1.52/Black=0.33.  Loses game:     	White=1     	---        Mistake:       	White=1     	---        Inaccurate:     	White=1     	---        OK:         	White=4     	Black=4      Best:        	White=1     	---} 0-1

[Event "Memorial Ukrainian Chess Warriors 2024"]
[Site "Lviv"]
[Date "2024.03.15"]
[Round "7.23"]
[White "Karpinets, Andrian"]
[Black "Dovgaliuk, Oleksandr"]
[Result "0-1"]
[ECO "B12"]
[WhiteElo "1681"]
[BlackElo "1936"]
[Annotator "RC"]
[PlyCount "66"]
[EventDate "2024.03.06"]
[EventType "swiss"]
[EventCountry "UKR"]
[SourceTitle "playchess.com"]
[Source "ChessBase"]
[SourceQuality "1"]
[TimeControl "600+5"]

1. e4 {[%emt 0:00:01]} c6 {[%emt 0:00:01]} 2. d4 {[%emt 0:00:04]} d5 {[%emt 0:00:00]} 3. e5 {[%emt 0:00:01]} Bf5 {[%emt 0:00:01]} 4. Nf3 {[%emt 0:00:01]} e6 {[%emt 0:00:01]} 5. Be2 {[%emt 0:00:02]} Nd7 {[%emt 0:00:01]} 6. O-O {[%emt 0:00:03]} a5 {[%emt 0:00:01]} 7. a4 {[%emt 0:00:22]} f6 {[%emt 0:00:01]} 8. Bf4 {[%emt 0:00:20]} Qc7 {[%emt 0:01:12]} 9. Qd2 {[%emt 0:00:12]} fxe5 {[%emt 0:00:06]} 10. Nxe5 {[%emt 0:00:08]} Bd6 {[%emt 0:00:09]} 11. Re1 {[%emt 0:01:11]} Ngf6 {[%emt 0:00:25]} 12. Nxd7 {[%emt 0:04:07]} Bxf4 {[%emt 0:00:27]} 13. Nxf6+ {[%emt 0:00:01]} gxf6 {[%emt 0:00:02]} 14. Bh5+ {[%emt 0:00:01]} Bg6 {[%emt 0:04:37]} 15. Qe2 {[%emt 0:00:01]} Qf7 {[%emt 0:00:49]} 16. Bg4 {[%emt 0:02:11]} f5 {[%emt 0:00:12]} 17. Bf3 {[%emt 0:00:06]} Kd7 {[%emt 0:00:03]} 18. Nd2 {[%emt 0:00:08]} Rae8 {[%emt 0:00:38]} 19. g3 {[%emt 0:00:03]} Bc7 {[%emt 0:00:08]} 20. Ra3 {[%emt 0:00:16]} h5 {[%emt 0:00:09]} 21. h4 {[%emt 0:00:48]} f4 {[%emt 0:00:08]} 22. Bg2 {[%emt 0:00:15]} e5 {[%emt 0:00:36]} 23. dxe5 {[%emt 0:00:47]} Rxe5 {[%emt 0:00:08]} 24. Qd1 {[%emt 0:00:17]} Bxc2 {[%emt 0:00:08]} 25. Bh3+ {[%emt 0:00:11]} Kd8 {[%emt 0:00:07]} 26. Qc1 {[%emt 0:00:11]} Rxe1+ {[%emt 0:00:05]} 27. Qxe1 {[%emt 0:00:01]} Re8 {[%emt 0:00:04]} 28. Qc1 {[%emt 0:00:12]} fxg3 {[%emt 0:00:04]} 29. Rf3 {[%emt 0:00:18]} gxf2+ {[%emt 0:00:10]} 30. Rxf2 {[%emt 0:00:04]} Bb6 {[%emt 0:00:37]} 31. Qf1 {[%emt 0:00:03]} Rf8 {[%emt 0:00:10]} 32. Kh1 {[%emt 0:00:11]} Qxf2 {[%emt 0:00:09]} 33. Qxf2 {[%emt 0:00:05]} Rxf2 {[%emt 0:00:02]} 0-1

[Event "Memorial Ukrainian Chess Warriors 2024"]
[Site "Lviv"]
[Date "2024.03.15"]
[Round "7.25"]
[White "Pastukhov, Igor"]
[Black "Kipen, Svyatoslav"]
[Result "1-0"]
[ECO "D20"]
[WhiteElo "2125"]
[BlackElo "1710"]
[Annotator "RC"]
[PlyCount "115"]
[EventDate "2024.03.06"]
[EventType "swiss"]
[EventCountry "UKR"]
[SourceTitle "playchess.com"]
[Source "ChessBase"]
[SourceQuality "1"]
[TimeControl "600+5"]

1. d4 {[%emt 0:00:04]} d5 {[%emt 0:00:01]} 2. c4 {[%emt 0:00:01]} dxc4 {[%emt 0:00:02]} 3. e3 {[%emt 0:00:03]} Nf6 {[%emt 0:00:02]} 4. Bxc4 {[%emt 0:00:01]} e6 {[%emt 0:00:01]} 5. Nc3 {[%emt 0:00:03]} a6 {[%emt 0:00:01]} 6. a4 {[%emt 0:00:11]} Nc6 {[%emt 0:00:06]} 7. Nf3 {[%emt 0:00:04]} Be7 {[%emt 0:00:01]} 8. O-O {[%emt 0:00:12]} O-O {[%emt 0:00:07]} 9. e4 {[%emt 0:00:34]} Bb4 {[%emt 0:00:11]} 10. e5 {[%emt 0:00:34]} Nd5 {[%emt 0:00:12]} 11. Ne4 {[%emt 0:00:13]} Be7 {[%emt 0:00:18]} 12. Re1 {[%emt 0:01:06]} h6 {[%emt 0:00:32]} 13. Ng3 {[%emt 0:00:39]} b6 {[%emt 0:01:04]} 14. Bd2 {[%emt 0:00:53]} Bb7 {[%emt 0:00:16]} 15. Rc1 {[%emt 0:00:26]} Rc8 {[%emt 0:00:12]} 16. Qe2 {[%emt 0:00:42]} Nb8 {[%emt 0:01:19]} 17. Rcd1 {[%emt 0:01:05]} c5 {[%emt 0:00:31]} 18. dxc5 {[%emt 0:01:04]} Bxc5 {[%emt 0:00:06]} 19. Ne4 {[%emt 0:00:29]} Qe7 {[%emt 0:00:08]} 20. Nxc5 {[%emt 0:00:19]} Qxc5 {[%emt 0:00:34]} 21. b3 {[%emt 0:00:20]} Rfd8 {[%emt 0:00:04]} 22. h4 {[%emt 0:00:14]} Nc6 {[%emt 0:00:22]} 23. Bxa6 {[%emt 0:00:10]} Bxa6 {[%emt 0:00:13]} 24. Qxa6 {[%emt 0:00:02]} Ndb4 {[%emt 0:00:24]} 25. Qe2 {[%emt 0:00:19]} Nd3 {[%emt 0:00:39]} 26. Rf1 {[%emt 0:00:10]} Ncxe5 {[%emt 0:00:13]} 27. Nxe5 {[%emt 0:00:19]} Nxe5 {[%emt 0:00:05]} 28. Be3 {[%emt 0:00:23]} Qa5 {[%emt 0:00:34]} 29. Rxd8+ {[%emt 0:00:55]} Rxd8 {[%emt 0:00:02]} 30. Bxb6 {[%emt 0:00:25]} Qxb6 {[%emt 0:00:02]} 31. Qxe5 {[%emt 0:00:01]} Qxb3 {[%emt 0:00:02]} 32. Qe4 {[%emt 0:00:13]} Qc3 {[%emt 0:00:15]} 33. g3 {[%emt 0:00:16]} Rd4 {[%emt 0:00:13]} 34. Qe5 {[%emt 0:00:11]} Qd2 {[%emt 0:00:11]} 35. Ra1 {[%emt 0:00:07]} Qb2 {[%emt 0:00:08]} 36. Qe1 {[%emt 0:00:06]} Rd2 {[%emt 0:00:10]} 37. Rd1 {[%emt 0:00:07]} Re2 {[%emt 0:00:15]} 38. Qf1 {[%emt 0:00:04]} Qc2 {[%emt 0:00:11]} 39. Ra1 {[%emt 0:00:03]} Qb2 {[%emt 0:00:15]} 40. Rd1 {[%emt 0:00:05]} Qc2 {[%emt 0:00:06]} 41. Rc1 {[%emt 0:00:05]} Qb2 {[%emt 0:00:13]} 42. Rb1 {[%emt 0:00:04]} Qc2 {[%emt 0:00:09]} 43. Ra1 {[%emt 0:00:10]} Qb2 {[%emt 0:00:14]} 44. Re1 {[%emt 0:00:05]} Rd2 {[%emt 0:00:08]} 45. a5 {[%emt 0:00:06]} Qb4 {[%emt 0:00:35]} 46. a6 {[%emt 0:00:03]} Ra2 {[%emt 0:00:02]} 47. Rb1 {[%emt 0:00:04]} Qa5 {[%emt 0:00:20]} 48. Rb8+ {[%emt 0:00:06]} Kh7 {[%emt 0:00:01]} 49. Qd3+ {[%emt 0:00:00]} f5 {[%emt 0:00:17]} 50. Ra8 {[%emt 0:00:07]} Qe1+ {[%emt 0:00:15]} 51. Qf1 {[%emt 0:00:02]} Qe4 {[%emt 0:00:11]} 52. Qg2 {[%emt 0:00:04]} Qe1+ {[%emt 0:00:21]} 53. Qf1 {[%emt 0:00:01]} Qe4 {[%emt 0:00:25]} 54. Qg2 {[%emt 0:00:04]} Qe1+ {[%emt 0:00:10]} 55. Qf1 {[%emt 0:00:01]} Qe4 {[%emt 0:00:03]} 56. Qg2 {[%emt 0:00:18]} Qe1+ {[%emt 0:00:17]} 57. Qf1 {[%emt 0:00:01]} Qe4 {[%emt 0:00:05]} 58. Qg2 {[%emt 0:00:12]} 1-0

[Event "Memorial Ukrainian Chess Warriors 2024"]
[Site "Lviv"]
[Date "2024.03.15"]
[Round "7.26"]
[White "Rushynets, Ivan"]
[Black "Piuro, Vladyslav"]
[Result "0-1"]
[ECO "E70"]
[WhiteElo "1852"]
[BlackElo "2051"]
[Annotator "NA RC"]
[PlyCount "58"]
[EventDate "2024.03.06"]
[EventType "swiss"]
[EventCountry "UKR"]
[SourceTitle "playchess.com"]
[Source "ChessBase"]
[SourceQuality "1"]
[TimeControl "600+5"]

1. d4 {[%emt 0:00:01]} Nf6 2. c4 g6 {[%emt 0:00:04]} 3. Nc3 {[%emt 0:00:01]} Bg7 {[%emt 0:00:01]} 4. e4 {[%emt 0:00:01]} d6 {[%emt 0:00:00]} 5. Be3 {[%emt 0:00:06]} O-O {[%emt 0:00:04]} 6. f3 {[%emt 0:00:01]} c5 {[%emt 0:00:05]} 7. d5 {[%emt 0:00:01]} e6 {[%emt 0:00:02]} 8. Bd3 {[%emt 0:00:05]} exd5 {[%emt 0:00:01]} 9. exd5 {[%emt 0:00:03]} Re8 {[%emt 0:00:03]} 10. Kf2 {[%emt 0:00:04]} Na6 {[%emt 0:00:21]} 11. Qd2 {[%emt 0:00:23]} Ng4+ {[%emt 0:00:57]} 12. fxg4 {[%emt 0:00:32]} Rxe3 {[%emt 0:00:00]} 13. Nf3 {[%emt 0:00:58]} Bd4 {[%emt 0:00:22]} 14. Nxd4 {[%emt 0:00:15]} cxd4 {[%emt 0:00:01]} 15. Rhf1 {[%emt 0:02:19]} Rxd3 {[%emt 0:00:07]} 16. Qxd3 {[%emt 0:00:07]} dxc3 {[%emt 0:00:01]} 17. Qxc3 {[%emt 0:00:13]} Bxg4 {[%emt 0:00:08]} 18. Kg1 {[%emt 0:02:21]} Nc5 {[%emt 0:00:32]} 19. Rf4 {[%emt 0:00:08]} Qb6 {[%emt 0:01:55]} 20. Kh1 {[%emt 0:00:10]} Bf5 {[%emt 0:00:32]} 21. Raf1 {[%emt 0:02:55]} Ne4 {[%emt 0:01:02]} 22. Qf3 {[%emt 0:00:11]} Nd2 {[%emt 0:00:05]} 23. Qg3 {[%emt 0:00:56]} Nxf1 {[%emt 0:00:03]} 24. Rxf1 {[%emt 0:00:01]} Qxb2 {[%emt 0:00:53]} 25. Qxd6 {[%emt 0:00:01]} Re8 {[%emt 0:00:20]} 26. Qc7 {[%emt 0:00:13]} Qe2 {[%emt 0:00:13]} 27. Rg1 {[%emt 0:00:02]} Qf2 {[%emt 0:00:18]} 28. Qxb7 Re1 {[%emt 0:00:07]} 29. Qb8+ {[%emt 0:00:13]} Kg7 {[%emt 0:00:01]} 0-1

[Event "Memorial Ukrainian Chess Warriors 2024"]
[Site "Lviv"]
[Date "2024.03.15"]
[Round "7.27"]
[White "Fishchuk, Vladyslav"]
[Black "Ivanov, Vladimir A."]
[Result "1-0"]
[ECO "A00"]
[WhiteElo "2203"]
[BlackElo "1887"]
[Annotator "RC"]
[PlyCount "92"]
[EventDate "2024.03.06"]
[EventType "swiss"]
[EventCountry "UKR"]
[SourceTitle "playchess.com"]
[Source "ChessBase"]
[SourceQuality "1"]
[TimeControl "600+5"]

1. Nc3 {[%emt 0:00:02]} e5 {[%emt 0:00:16]} 2. Nf3 {[%emt 0:00:02]} Nc6 {[%emt 0:00:18]} 3. d4 {[%emt 0:00:02]} exd4 {[%emt 0:00:25]} 4. Nxd4 {[%emt 0:00:02]} Nf6 {[%emt 0:00:13]} 5. Bg5 {[%emt 0:00:01]} Nxd4 {[%emt 0:01:25]} 6. Qxd4 {[%emt 0:00:02]} Be7 {[%emt 0:00:01]} 7. e4 {[%emt 0:00:02]} d6 {[%emt 0:00:14]} 8. O-O-O {[%emt 0:00:04]} O-O {[%emt 0:00:25]} 9. f3 {[%emt 0:00:29]} h6 {[%emt 0:00:26]} 10. Be3 {[%emt 0:00:03]} a6 {[%emt 0:00:45]} 11. g4 {[%emt 0:00:08]} Nd7 {[%emt 0:00:17]} 12. Nd5 {[%emt 0:00:02]} Bf6 {[%emt 0:00:35]} 13. Nxf6+ {[%emt 0:00:02]} Qxf6 {[%emt 0:00:03]} 14. Qxf6 {[%emt 0:00:17]} Nxf6 {[%emt 0:00:01]} 15. h4 {[%emt 0:00:04]} Nd7 {[%emt 0:00:15]} 16. Be2 {[%emt 0:00:45]} Ne5 {[%emt 0:00:20]} 17. Rdg1 {[%emt 0:00:03]} b5 {[%emt 0:00:31]} 18. h5 {[%emt 0:00:03]} Be6 {[%emt 0:00:29]} 19. b3 {[%emt 0:00:18]} d5 {[%emt 0:00:25]} 20. f4 Nc6 {[%emt 0:00:32]} 21. f5 {[%emt 0:00:23]} Bd7 {[%emt 0:00:05]} 22. exd5 {[%emt 0:00:04]} Nb4 {[%emt 0:00:16]} 23. Bf3 {[%emt 0:00:19]} Rfe8 {[%emt 0:00:26]} 24. Bc5 {[%emt 0:00:06]} a5 {[%emt 0:00:07]} 25. a3 {[%emt 0:00:21]} Na6 {[%emt 0:00:02]} 26. Bd4 {[%emt 0:00:01]} Rac8 {[%emt 0:00:28]} 27. f6 {[%emt 0:00:16]} c5 {[%emt 0:00:19]} 28. dxc6 {[%emt 0:00:03]} Bxc6 {[%emt 0:00:01]} 29. Bxc6 {[%emt 0:00:06]} Rxc6 {[%emt 0:00:01]} 30. fxg7 {[%emt 0:00:09]} Re4 {[%emt 0:00:22]} 31. Rd1 {[%emt 0:00:44]} Nc5 {[%emt 0:00:18]} 32. Kb2 {[%emt 0:00:08]} Ne6 {[%emt 0:00:02]} 33. Bc3 {[%emt 0:00:23]} b4 {[%emt 0:00:27]} 34. axb4 {[%emt 0:00:14]} axb4 {[%emt 0:00:01]} 35. Bd2 {[%emt 0:00:20]} Rxg4 {[%emt 0:00:16]} 36. Bxh6 {[%emt 0:00:18]} Nxg7 {[%emt 0:00:08]} 37. Bxg7 {[%emt 0:00:04]} Kxg7 {[%emt 0:00:01]} 38. Rh2 {[%emt 0:00:23]} Kh6 {[%emt 0:00:09]} 39. Rf1 {[%emt 0:00:26]} f6 {[%emt 0:00:07]} 40. Rhf2 {[%emt 0:00:05]} Kxh5 {[%emt 0:00:31]} 41. Rxf6 {[%emt 0:00:05]} Rc7 {[%emt 0:00:30]} 42. Rf7 {[%emt 0:00:07]} Rc6 {[%emt 0:00:24]} 43. R1f6 {[%emt 0:00:16]} Rc8 {[%emt 0:00:10]} 44. Rf8 {[%emt 0:00:17]} Rc7 {[%emt 0:00:19]} 45. Rf4 {[%emt 0:01:21]} Rxf4 46. Rxf4 Rb7 1-0

[Event "Memorial Ukrainian Chess Warriors 2024"]
[Site "Lviv"]
[Date "2024.03.15"]
[Round "8.1"]
[White "Kislinsky, Alexey"]
[Black "Pavlov, Sergey"]
[Result "1/2-1/2"]
[ECO "B20"]
[WhiteElo "2361"]
[BlackElo "2451"]
[Annotator "TA"]
[PlyCount "38"]
[EventDate "2024.03.06"]
[EventType "swiss"]
[EventCountry "UKR"]
[SourceTitle "playchess.com"]
[Source "ChessBase"]
[SourceQuality "1"]
[TimeControl "600+5"]

{[%evp 9,38,-8,0,-7,-8,0,33,27,59,68,84,66,72,67,63,72,70,43,33,24,26,0,0,0,0,0,0,0,0,0,0]} 1. e4 {[%emt 0:00:03]} c5 {[%emt 0:00:01]} 2. b3 {[%emt 0:00:11]} g6 {[%emt 0:00:35]} 3. Bb2 {[%emt 0:00:02]} Nf6 {[%emt 0:00:02]} 4. e5 {[%emt 0:00:11]} Nd5 {[%emt 0:00:06]} 5. Nc3 {[%emt 0:00:14]} Nxc3 {[%emt 0:01:15]} 6. Bxc3 {[%emt 0:00:03]} Bg7 {[%emt 0:00:03]} 7. h4 {[%emt 0:00:23]} d5 {[%emt 0:02:00]} 8. exd6 {[%emt 0:00:13] White is slightly better.} Bxc3 {[%emt 0:00:02]} 9. dxc3 {[%emt 0:00:04]} exd6 {[%emt 0:01:04]} 10. Bb5+ {[%emt 0:00:10]} Nc6 {[%emt 0:00:54]} 11. Qe2+ {[%emt 0:00:09]} Be6 {[%emt 0:01:01]} 12. O-O-O {[%emt 0:00:25]} Qf6 {[%emt 0:00:33]} 13. Bxc6+ {[%emt 0:00:32]} (13. Kb2 {feels hotter.} Rd8 14. Nh3 O-O 15. h5) 13... bxc6 {[%emt 0:00:01]} 14. Rxd6 {[%emt 0:01:00] [#] And now Qf3 would win.} (14. Kb2 {is more complex.} Rd8 15. h5 O-O 16. Re1) 14... Qxc3 {[%emt 0:01:31] White must now prevent ...Qa1+.} 15. Rxe6+ {[%emt 0:00:47]} (15. Rxc6 $2 {too greedy.} Qa1+ 16. Kd2 Rd8+ (16... Qxa2 17. Rxe6+ fxe6 18. Qxe6+ Kf8 19. Qf6+ Kg8 20. Nf3 $16) 17. Ke3 Qc3+ $19 (17... Qxa2 18. Nf3 $17) (17... Qe5+ $2 18. Kf3 $19) (17... Qxa2 18. Rxc5 O-O 19. Nf3 $17) (17... Qe5+ $2 18. Kf3 $19)) (15. Kb1 {simplifies} O-O 16. Qd2 Qxd2 17. Rxd2 a5 18. Nh3) 15... fxe6 {[%emt 0:00:01] The position is equal.} 16. Qxe6+ {[%emt 0:00:01]} Kf8 {[%emt 0:00:02]} 17. Qd6+ {[%emt 0:00:20]} Kg8 {[%emt 0:00:20]} 18. Qe6+ {[%emt 0:00:02]} (18. Nf3 $5 Qa1+ $8 19. Kd2 Qxh1 20. Qe6+ Kg7 21. Qe5+ (21. Qe7+ Kh6 $11) 21... Kg8 22. Qe6+ Kg7 23. Qe5+ (23. Qe7+ Kg8 $11) 23... Kg8 24. Qe6+ $11) 18... Kf8 {[%emt 0:00:00] [#] ( -> ...Rd8)} (18... Kg7 $5 19. Qe7+ $8 Kh6 20. Qg5+ Kg7 21. Qe7+ Kh6 22. Qg5+ Kg7 23. Qe7+ $11) 19. Qd6+ {[%emt 0:00:01]} Kg8 {[%emt 0:00:01] Weighted Error Value: White=0.07 (flawless) /Black=0.06 (flawless) .  Inaccurate:     	White=2     	Black=2      OK:         	White=2     	Black=5      Best:        	White=2     	---} 1/2-1/2

[Event "Memorial Ukrainian Chess Warriors 2024"]
[Site "Lviv"]
[Date "2024.03.15"]
[Round "8.3"]
[White "Kravtsiv, Martyn"]
[Black "Shevchenko, Yaroslav"]
[Result "0-1"]
[ECO "B47"]
[WhiteElo "2598"]
[BlackElo "1971"]
[Annotator "TA"]
[PlyCount "56"]
[EventDate "2024.03.06"]
[EventType "swiss"]
[EventCountry "UKR"]
[SourceTitle "playchess.com"]
[Source "ChessBase"]
[SourceQuality "1"]
[TimeControl "600+5"]

{[%evp 20,56,19,16,34,25,77,75,70,69,73,37,46,33,47,47,50,37,62,65,73,31,106,115,108,120,123,135,214,233,513,526,498,349,1220,1224,1375,1362,1112]} 1. e4 {[%emt 0:00:01]} c5 {[%emt 0:00:03]} 2. Nf3 {[%emt 0:00:02]} e6 {[%emt 0:00:02]} 3. d4 {[%emt 0:00:02]} cxd4 {[%emt 0:00:02]} 4. Nxd4 {[%emt 0:00:02]} Nc6 {[%emt 0:00:01]} 5. Nc3 {[%emt 0:00:03]} Qc7 {[%emt 0:00:01]} 6. Be2 {[%emt 0:00:05]} a6 {[%emt 0:00:02]} 7. O-O {[%emt 0:00:08]} Nf6 {[%emt 0:00:02]} 8. Be3 {[%emt 0:00:08]} Be7 {[%emt 0:00:05]} 9. f4 {[%emt 0:00:17]} d6 {[%emt 0:00:02]} 10. Kh1 {[%emt 0:00:05]} O-O {[%emt 0:00:04]} 11. Qe1 {[%emt 0:00:03]} Rb8 {[%emt 0:00:27]} 12. Qg3 {[%emt 0:00:55]} Nxd4 {[%emt 0:00:34]} (12... d5 $11) 13. Bxd4 $16 {[%emt 0:00:04]} b5 {[%emt 0:00:02] White is better.} 14. e5 {[%emt 0:01:14]} Ne8 {[%emt 0:00:47]} 15. exd6 {[%emt 0:01:20]} Bxd6 {[%emt 0:00:04]} 16. Ne4 {[%emt 0:00:03][%cal Od4g7] [#] Black must now prevent Bxg7!} f6 $1 {[%emt 0:00:30]} 17. Bd3 {[%emt 0:00:03]} Be7 {[%emt 0:01:47]} 18. Rae1 {[%emt 0:00:03][%cal Ba1e1,Be1e6,Be6a6,Ba6a8,Ba8d8][%mdl 32]} Bd7 {[%emt 0:00:40]} 19. c3 {[%emt 0:00:39]} Rd8 {[%emt 0:00:16]} 20. b4 {[%emt 0:00:35]} (20. Qe3 {simplifies} Qc8 21. Bc2 Nd6 22. Nxd6 Bxd6 23. Qd3) 20... Bc6 {[%emt 0:00:33]} (20... f5 $14 21. Ng5 Bxg5 22. fxg5 Qxg3 23. hxg3 Nc7) 21. Nc5 {[%emt 0:00:27]} Bxc5 {[%emt 0:01:08]} 22. Bxc5 {[%emt 0:00:08][%cal Oe1e6]} ({But not} 22. bxc5 Bd5 $14) 22... Rf7 {[%emt 0:00:02] Black is weak on the dark squares} 23. Rxe6 $40 {[%emt 0:00:17][%mdl 128] [#] Threatens to win with Bc2. Black is in trouble.} Bd5 {[%emt 0:00:19]} (23... g6 $16 {was necessary.} 24. Bd4 Ng7) 24. Rxa6 $18 {[%emt 0:01:23][%cal Oa2a4]} Bxg2+ $2 {[%emt 0:00:15]} (24... Qc8 {might work better.}) 25. Qxg2 {[%emt 0:00:08]} Rxd3 {[%emt 0:00:02][%cal Bd8d3,Bd3d1,Bd1e1][%mdl 32]} 26. Re1 {[%emt 0:00:39]} Qd8 {[%emt 0:00:57]} (26... Rd8 27. c4 bxc4) 27. Ra8 {[%emt 0:00:12]} Rd1 {[%emt 0:00:34]} 28. Rxd8 {[%emt 0:00:03]} Rxe1+ {[%emt 0:00:01][%mdl 32768] Weighted Error Value: White=0.21 (precise) /Black=0.50.  Mistake:       	---       	Black=5      Inaccurate:     	White=2     	---        OK:         	White=5     	Black=4      Best:        	White=2     	---        Strong:       	---       	Black=1     . Loss on time!?} 0-1

[Event "Memorial Ukrainian Chess Warriors 2024"]
[Site "Lviv"]
[Date "2024.03.15"]
[Round "8.4"]
[White "Dubnevych, Maksym"]
[Black "Baziuk, Vladyslav"]
[Result "1/2-1/2"]
[ECO "A45"]
[WhiteElo "2293"]
[BlackElo "2211"]
[Annotator "RC"]
[PlyCount "84"]
[EventDate "2024.03.06"]
[EventType "swiss"]
[EventCountry "UKR"]
[SourceTitle "playchess.com"]
[Source "ChessBase"]
[SourceQuality "1"]
[TimeControl "600+5"]

1. d4 {[%emt 0:00:02]} Nf6 {[%emt 0:00:01]} 2. Nc3 {[%emt 0:00:01]} d5 {[%emt 0:00:02]} 3. Bf4 {[%emt 0:00:01]} c5 {[%emt 0:00:03]} 4. e4 {[%emt 0:00:01]} Nxe4 {[%emt 0:00:04]} 5. Nxe4 {[%emt 0:00:01]} dxe4 {[%emt 0:00:01]} 6. dxc5 {[%emt 0:00:01]} Qa5+ {[%emt 0:00:01]} 7. c3 {[%emt 0:00:01]} Qxc5 {[%emt 0:00:01]} 8. Qa4+ {[%emt 0:00:01]} Nc6 {[%emt 0:00:02]} 9. Qxe4 {[%emt 0:00:01]} g6 {[%emt 0:00:04]} 10. Nf3 {[%emt 0:00:06]} Bg7 {[%emt 0:00:18]} 11. Rd1 {[%emt 0:00:02]} Qb6 {[%emt 0:00:24]} 12. Rd2 {[%emt 0:00:46]} Bf5 {[%emt 0:00:02]} 13. Qe3 {[%emt 0:00:15]} Qxe3+ {[%emt 0:01:45]} 14. Bxe3 {[%emt 0:00:01]} O-O {[%emt 0:00:02]} 15. Bc4 {[%emt 0:01:53]} Rad8 {[%emt 0:00:22]} 16. Bd5 {[%emt 0:01:18]} e6 {[%emt 0:01:36]} 17. Bc4 {[%emt 0:00:18]} Rxd2 {[%emt 0:00:09]} 18. Kxd2 {[%emt 0:00:17]} Na5 {[%emt 0:01:00]} 19. Be2 {[%emt 0:00:07]} b6 {[%emt 0:00:06]} 20. Nd4 {[%emt 0:00:07]} Be4 {[%emt 0:00:02]} 21. f3 {[%emt 0:00:39]} Bd5 {[%emt 0:00:21]} 22. b3 Rd8 23. Kc2 {[%emt 0:00:13]} Rc8 {[%emt 0:00:42]} 24. Rd1 {[%emt 0:00:50]} Nc6 {[%emt 0:00:42]} 25. Nxc6 {[%emt 0:01:44]} Bxc6 {[%emt 0:00:09]} 26. Ba6 {[%emt 0:00:08]} Rb8 {[%emt 0:00:44]} 27. Rd6 {[%emt 0:00:05]} Be8 {[%emt 0:00:10]} 28. Bf4 {[%emt 0:00:15]} e5 {[%emt 0:00:02]} 29. Bg5 {[%emt 0:00:15]} Bf8 {[%emt 0:02:11]} 30. Rd2 {[%emt 0:00:01]} Bc6 {[%emt 0:00:05]} 31. Bd8 {[%emt 0:00:24]} e4 {[%emt 0:00:08]} 32. fxe4 {[%emt 0:00:38]} Bxe4+ {[%emt 0:00:01]} 33. Kb2 {[%emt 0:00:00]} Bh6 {[%emt 0:00:22]} 34. Rd7 {[%emt 0:00:10]} Bf5 35. Rd1 {[%emt 0:00:02]} Bg4 {[%emt 0:00:13]} 36. Rd4 Be6 37. Bc7 {[%emt 0:01:15]} Re8 {[%emt 0:00:25]} 38. Bb5 {[%emt 0:00:13]} Rc8 {[%emt 0:00:14]} 39. Be5 {[%emt 0:00:08]} Bg7 {[%emt 0:00:02]} 40. Bxg7 Kxg7 {[%emt 0:00:09]} 41. a4 {[%emt 0:00:23]} Kf6 42. b4 {[%emt 0:00:09]} Ke5 {[%emt 0:00:07]} 1/2-1/2